[Event "*** Titled Tuesday Blitz"]
[Site "Chess.com"]
[Date "2019.08.06"]
[Round "9"]
[White "ChrisTool2"]
[Black "leclash"]
[Result "0-1"]
[WhiteElo "2276"]
[BlackElo "2215"]
[TimeControl "180+2"]
[EndTime "15:08:54 PDT"]
[Termination "leclash won by resignation"]

1. e4 {[%clk 0:03:01.9]} 1... e5 {[%clk 0:03:00.6]} 2. Nc3 {[%clk 0:03:03]} 2...
Nf6 {[%clk 0:03:00.4]} 3. f4 {[%clk 0:03:03.7]} 3... d5 {[%clk 0:03:00.6]} 4.
fxe5 {[%clk 0:03:02.1]} 4... Nxe4 {[%clk 0:03:00.1]} 5. Nf3 {[%clk 0:03:01.8]}
5... Bc5 {[%clk 0:02:58]} 6. d4 {[%clk 0:02:54.1]} 6... Bb4 {[%clk 0:02:58]} 7.
Bd2 {[%clk 0:02:53.1]} 7... Bxc3 {[%clk 0:02:58.6]} 8. bxc3 {[%clk 0:02:50.6]}
8... O-O {[%clk 0:02:57.8]} 9. c4 {[%clk 0:02:42.1]} 9... Bg4 {[%clk 0:02:50]}
10. Bd3 {[%clk 0:02:21.6]} 10... Bxf3 {[%clk 0:02:32.4]} 11. Qxf3 {[%clk
0:02:18.5]} 11... Nxd2 {[%clk 0:02:33.1]} 12. Kxd2 {[%clk 0:02:20.4]} 12... dxc4
{[%clk 0:02:33.7]} 13. Qxb7 {[%clk 0:02:05.6]} 13... Nd7 {[%clk 0:01:53.6]} 14.
Bxc4 {[%clk 0:02:03.2]} 14... Nxe5 {[%clk 0:01:51.8]} 15. Qd5 {[%clk 0:01:46.9]}
15... Nxc4+ {[%clk 0:01:28]} 16. Qxc4 {[%clk 0:01:48.8]} 16... c5 {[%clk
0:01:22]} 17. c3 {[%clk 0:00:27.8]} 17... Qg5+ {[%clk 0:01:19.2]} 18. Kd1 {[%clk
0:00:24.7]} 18... cxd4 {[%clk 0:01:03]} 19. cxd4 {[%clk 0:00:22.9]} 19... Qxg2
{[%clk 0:00:55.3]} 20. Re1 {[%clk 0:00:22.9]} 20... Rfe8 {[%clk 0:00:45.4]} 21.
Rc1 {[%clk 0:00:12.4]} 21... Rxe1+ {[%clk 0:00:42.3]} 22. Kxe1 {[%clk
0:00:14.3]} 22... Re8+ {[%clk 0:00:43.1]} 23. Kd1 {[%clk 0:00:15.8]} 23... Qh1+
{[%clk 0:00:27.8]} 24. Kc2 {[%clk 0:00:15.4]} 24... Qxh2+ {[%clk 0:00:28.8]} 25.
Kb3 {[%clk 0:00:15.9]} 25... Rb8+ {[%clk 0:00:23.8]} 26. Ka4 {[%clk 0:00:15.6]}
26... h5 {[%clk 0:00:17.9]} 27. d5 {[%clk 0:00:16.6]} 27... Qb2 {[%clk
0:00:17.2]} 28. Rc2 {[%clk 0:00:15.9]} 28... Qb6 {[%clk 0:00:16.7]} 29. Rc3
{[%clk 0:00:12.4]} 29... h4 {[%clk 0:00:17.5]} 30. Qc5 {[%clk 0:00:11.8]} 30...
Qa6+ {[%clk 0:00:14.4]} 31. Qa5 {[%clk 0:00:11.9]} 31... Qxa5+ {[%clk
0:00:15.2]} 32. Kxa5 {[%clk 0:00:13.8]} 32... Rd8 {[%clk 0:00:15.9]} 33. Rd3
{[%clk 0:00:13.1]} 33... g5 {[%clk 0:00:16.9]} 34. Ka6 {[%clk 0:00:13.1]} 34...
g4 {[%clk 0:00:18.2]} 35. Kxa7 {[%clk 0:00:14.8]} 35... g3 {[%clk 0:00:19]} 36.
Kb7 {[%clk 0:00:13.6]} 36... g2 {[%clk 0:00:19.1]} 37. Rd1 {[%clk 0:00:14]}
37... Rxd5 {[%clk 0:00:18.5]} 38. Rxd5 {[%clk 0:00:13.2]} 38... g1=Q {[%clk
0:00:18.7]} 39. a4 {[%clk 0:00:13.9]} 39... h3 {[%clk 0:00:19.9]} 40. a5 {[%clk
0:00:14.5]} 40... h2 {[%clk 0:00:21.1]} 41. a6 {[%clk 0:00:15.9]} 41... h1=Q
{[%clk 0:00:22.4]} 42. Kc6 {[%clk 0:00:16.9]} 42... Qc1+ {[%clk 0:00:21.9]} 0-1

[Event "*** Titled Tuesday Blitz"]
[Site "Chess.com"]
[Date "2019.08.06"]
[Round "9"]
[White "Blazinq"]
[Black "K_A_S_T_O_R"]
[Result "1-0"]
[WhiteElo "2631"]
[BlackElo "2778"]
[TimeControl "180+2"]
[EndTime "15:08:59 PDT"]
[Termination "Blazinq won by resignation"]

1. e4 {[%clk 0:03:01.9]} 1... e5 {[%clk 0:02:59.6]} 2. Nf3 {[%clk 0:03:03]} 2...
Nc6 {[%clk 0:03:00.9]} 3. Bb5 {[%clk 0:03:04.4]} 3... a6 {[%clk 0:03:01.8]} 4.
Ba4 {[%clk 0:03:05.9]} 4... Nf6 {[%clk 0:03:02.6]} 5. O-O {[%clk 0:03:07.2]}
5... Be7 {[%clk 0:03:04]} 6. Re1 {[%clk 0:03:08.6]} 6... b5 {[%clk 0:03:05.3]}
7. Bb3 {[%clk 0:03:10.2]} 7... d6 {[%clk 0:03:06.7]} 8. c3 {[%clk 0:03:11.5]}
8... O-O {[%clk 0:03:08.1]} 9. h3 {[%clk 0:03:12.3]} 9... Bb7 {[%clk 0:03:09.4]}
10. d4 {[%clk 0:03:13.5]} 10... Re8 {[%clk 0:03:10.7]} 11. Nbd2 {[%clk
0:03:13.6]} 11... Bf8 {[%clk 0:03:11.8]} 12. a3 {[%clk 0:03:15.2]} 12... h6
{[%clk 0:03:12.7]} 13. Bc2 {[%clk 0:03:16]} 13... d5 {[%clk 0:03:14]} 14. dxe5
{[%clk 0:02:38.9]} 14... Nxe5 {[%clk 0:03:13.9]} 15. Nxe5 {[%clk 0:02:40.8]}
15... Rxe5 {[%clk 0:03:14.9]} 16. f4 {[%clk 0:02:26.8]} 16... Bc5+ {[%clk
0:03:12.6]} 17. Kh2 {[%clk 0:02:10]} 17... Bc8 {[%clk 0:03:11.5]} 18. g3 {[%clk
0:01:40.3]} 18... Rh5 {[%clk 0:03:06]} 19. f5 {[%clk 0:01:22.3]} 19... Bf2
{[%clk 0:02:29.6]} 20. Rf1 {[%clk 0:00:57.8]} 20... Bxg3+ {[%clk 0:02:14.7]} 21.
Kxg3 {[%clk 0:00:58.8]} 21... Nxe4+ {[%clk 0:02:16.2]} 22. Nxe4 {[%clk
0:00:55.8]} 22... Qh4+ {[%clk 0:02:17.5]} 23. Kg2 {[%clk 0:00:18.3]} 23... Rxf5
{[%clk 0:02:14]} 24. Rxf5 {[%clk 0:00:12.9]} 24... Bxf5 {[%clk 0:02:12.1]} 25.
Nf2 {[%clk 0:00:11.2]} 25... Bxc2 {[%clk 0:02:07.7]} 26. Qxc2 {[%clk 0:00:13.1]}
26... Re8 {[%clk 0:02:09]} 27. Qd3 {[%clk 0:00:12.6]} 27... Re6 {[%clk
0:02:09.7]} 28. Be3 {[%clk 0:00:09.6]} 28... Rg6+ {[%clk 0:02:08]} 29. Kf1
{[%clk 0:00:10.9]} 29... Qg3 {[%clk 0:02:09.6]} 30. Ke2 {[%clk 0:00:11.7]} 30...
Re6 {[%clk 0:02:10.3]} 31. Re1 {[%clk 0:00:11.3]} 31... c5 {[%clk 0:02:11]} 32.
Kd2 {[%clk 0:00:11.6]} 32... Qd6 {[%clk 0:02:05.6]} 33. Re2 {[%clk 0:00:09.9]}
33... d4 {[%clk 0:02:04]} 34. cxd4 {[%clk 0:00:10.8]} 34... c4 {[%clk
0:02:05.8]} 35. Qc3 {[%clk 0:00:10.3]} 35... Qd5 {[%clk 0:02:06.6]} 36. Ng4
{[%clk 0:00:08.3]} 36... Re4 {[%clk 0:02:06.2]} 37. Nf2 {[%clk 0:00:09]} 37...
Re6 {[%clk 0:02:07]} 38. Re1 {[%clk 0:00:10.6]} 38... Qf3 {[%clk 0:02:07.2]} 39.
d5 {[%clk 0:00:10.6]} 39... Rd6 {[%clk 0:02:08.1]} 40. Rg1 {[%clk 0:00:05.6]}
40... f6 {[%clk 0:01:55.6]} 41. Kc1 {[%clk 0:00:06.5]} 41... Kh8 {[%clk
0:01:49]} 42. Rxg7 {[%clk 0:00:06.9]} 42... Rxd5 {[%clk 0:01:46.5]} 43. Rg6
{[%clk 0:00:04.9]} 43... Rf5 {[%clk 0:01:45.8]} 44. Rxh6+ {[%clk 0:00:04.4]}
44... Kg7 {[%clk 0:01:47.1]} 45. Qd4 {[%clk 0:00:05.7]} 45... Rd5 {[%clk
0:01:42.6]} 46. Qg4+ {[%clk 0:00:06.9]} 46... Qxg4 {[%clk 0:01:43.3]} 47. Nxg4
{[%clk 0:00:08.8]} 47... f5 {[%clk 0:01:44.8]} 48. Nf2 {[%clk 0:00:08.7]} 48...
f4 {[%clk 0:01:43.3]} 49. Bxf4 {[%clk 0:00:08.9]} 49... Rf5 {[%clk 0:01:45]} 50.
Rh4 {[%clk 0:00:09.8]} 50... Kg6 {[%clk 0:01:45.5]} 51. Rg4+ {[%clk 0:00:11.2]}
51... Kf7 {[%clk 0:01:46.9]} 52. Be3 {[%clk 0:00:12.3]} 52... Ke6 {[%clk
0:01:48.1]} 53. Re4+ {[%clk 0:00:12.8]} 53... Kd5 {[%clk 0:01:49.3]} 54. Rd4+
{[%clk 0:00:14.4]} 54... Kc6 {[%clk 0:01:50.5]} 55. Kd2 {[%clk 0:00:15.8]} 55...
Rf3 {[%clk 0:01:51.3]} 56. Rf4 {[%clk 0:00:15.8]} 56... Rg3 {[%clk 0:01:52]} 57.
Rg4 {[%clk 0:00:17]} 57... Rf3 {[%clk 0:01:52.9]} 58. Rg6+ {[%clk 0:00:18.6]}
58... Kd5 {[%clk 0:01:52.9]} 59. Rxa6 {[%clk 0:00:19.4]} 1-0

[Event "*** Titled Tuesday Blitz"]
[Site "Chess.com"]
[Date "2019.08.06"]
[Round "9"]
[White "Atakishiyev04"]
[Black "Polish_fighter3000"]
[Result "1/2-1/2"]
[WhiteElo "2674"]
[BlackElo "2970"]
[TimeControl "180+2"]
[EndTime "15:09:00 PDT"]
[Termination "Game drawn by agreement"]

1. e4 {[%clk 0:03:01.7]} 1... d5 {[%clk 0:02:59.9]} 2. exd5 {[%clk 0:03:01.8]}
2... Qxd5 {[%clk 0:03:01.8]} 3. Nc3 {[%clk 0:03:00.7]} 3... Qd8 {[%clk
0:03:03.2]} 4. Bc4 {[%clk 0:03:00.7]} 4... Nf6 {[%clk 0:03:04.4]} 5. d3 {[%clk
0:03:00.9]} 5... Bg4 {[%clk 0:03:01.8]} 6. Nf3 {[%clk 0:02:59.1]} 6... e6 {[%clk
0:03:01.4]} 7. O-O {[%clk 0:02:58.4]} 7... Nc6 {[%clk 0:02:55.6]} 8. h3 {[%clk
0:02:54.5]} 8... Bh5 {[%clk 0:02:55.3]} 9. Re1 {[%clk 0:02:46.2]} 9... Be7
{[%clk 0:02:51.7]} 10. Bb5 {[%clk 0:02:42.9]} 10... O-O {[%clk 0:02:50.8]} 11.
Bxc6 {[%clk 0:02:35.6]} 11... bxc6 {[%clk 0:02:52.7]} 12. Be3 {[%clk 0:02:28]}
12... Nd5 {[%clk 0:02:52.6]} 13. Rb1 {[%clk 0:02:20.9]} 13... Nxc3 {[%clk
0:02:46.4]} 14. bxc3 {[%clk 0:02:20.5]} 14... a5 {[%clk 0:02:48]} 15. g4 {[%clk
0:02:16]} 15... Bg6 {[%clk 0:02:48.5]} 16. Ne5 {[%clk 0:02:17]} 16... Qd5 {[%clk
0:02:49.5]} 17. Bf4 {[%clk 0:02:12.5]} 17... Qxa2 {[%clk 0:02:21.9]} 18. Ra1
{[%clk 0:02:00.6]} 18... Qd5 {[%clk 0:02:21.6]} 19. c4 {[%clk 0:02:01.5]} 19...
Qd4 {[%clk 0:02:12.4]} 20. Nxc6 {[%clk 0:02:01.3]} 20... Qxf4 {[%clk 0:02:13.5]}
21. Nxe7+ {[%clk 0:02:00.9]} 21... Kh8 {[%clk 0:02:15]} 22. Nxg6+ {[%clk
0:02:00.5]} 22... hxg6 {[%clk 0:02:13.9]} 23. Qe2 {[%clk 0:01:55.3]} 23... a4
{[%clk 0:02:12.4]} 24. Ra3 {[%clk 0:01:56.4]} 24... Ra5 {[%clk 0:02:12.3]} 25.
Rea1 {[%clk 0:01:55]} 25... Rfa8 {[%clk 0:02:12.5]} 26. Qe3 {[%clk 0:01:54.8]}
26... Qd6 {[%clk 0:02:13]} 27. d4 {[%clk 0:01:49.5]} 27... Qb4 {[%clk
0:02:12.7]} 28. c5 {[%clk 0:01:46.5]} 28... Kg8 {[%clk 0:02:10.1]} 29. c3 {[%clk
0:01:42.4]} 29... Qc4 {[%clk 0:01:59.7]} 30. h4 {[%clk 0:01:37.1]} 30... Rb5
{[%clk 0:01:57]} 31. Qf3 {[%clk 0:01:34.4]} 31... Ra6 {[%clk 0:01:51.7]} 32. h5
{[%clk 0:01:32]} 32... gxh5 {[%clk 0:01:52.7]} 33. gxh5 {[%clk 0:01:33.9]} 33...
Rb3 {[%clk 0:01:54.1]} 34. Qd1 {[%clk 0:01:31.5]} 34... Rxa3 {[%clk 0:01:49.6]}
35. Rxa3 {[%clk 0:01:33.4]} 35... Qb5 {[%clk 0:01:50.6]} 36. Qf1 {[%clk
0:01:31.8]} 36... Qb7 {[%clk 0:01:23.6]} 37. Qd1 {[%clk 0:01:30.2]} 37... Qc6
{[%clk 0:01:19.6]} 38. Qg4 {[%clk 0:01:29.7]} 38... Kh7 {[%clk 0:01:13.2]} 39.
c4 {[%clk 0:01:20.2]} 39... Qe8 {[%clk 0:00:54.3]} 40. Qe4+ {[%clk 0:01:18.3]}
40... Kg8 {[%clk 0:00:53.7]} 41. h6 {[%clk 0:01:14.8]} 41... e5 {[%clk
0:00:53.8]} 42. hxg7 {[%clk 0:01:10.5]} 42... Kxg7 {[%clk 0:00:42.5]} 43. Rg3+
{[%clk 0:01:05.6]} 43... Rg6 {[%clk 0:00:44]} 44. Rxg6+ {[%clk 0:01:05.9]} 44...
fxg6 {[%clk 0:00:45.9]} 45. d5 {[%clk 0:01:05.4]} 45... a3 {[%clk 0:00:45.1]}
46. Qe3 {[%clk 0:00:59.1]} 46... a2 {[%clk 0:00:23.5]} 47. Qa3 {[%clk
0:00:58.5]} 47... Qc8 {[%clk 0:00:24.2]} 48. Qxa2 {[%clk 0:00:57.8]} 48... Qg4+
{[%clk 0:00:25.7]} 49. Kh2 {[%clk 0:00:58.5]} 49... Qh4+ {[%clk 0:00:26.5]} 50.
Kg2 {[%clk 0:00:59.8]} 50... Qg4+ {[%clk 0:00:28]} 51. Kh2 {[%clk 0:00:59.8]}
1/2-1/2

[Event "*** Titled Tuesday Blitz"]
[Site "Chess.com"]
[Date "2019.08.06"]
[Round "9"]
[White "ALEXJR20"]
[Black "I-Mesquita"]
[Result "0-1"]
[WhiteElo "2178"]
[BlackElo "2675"]
[TimeControl "180+2"]
[EndTime "15:09:12 PDT"]
[Termination "I-Mesquita won by resignation"]

1. c4 {[%clk 0:03:01.9]} 1... e5 {[%clk 0:03:00.2]} 2. Nc3 {[%clk 0:03:03]} 2...
Nf6 {[%clk 0:03:01.3]} 3. g3 {[%clk 0:03:04.3]} 3... Nc6 {[%clk 0:03:02.1]} 4.
Bg2 {[%clk 0:03:04.5]} 4... Bc5 {[%clk 0:03:03.7]} 5. d3 {[%clk 0:03:00.6]} 5...
a6 {[%clk 0:03:03.9]} 6. Nf3 {[%clk 0:02:57.7]} 6... d6 {[%clk 0:03:04.9]} 7.
Bg5 {[%clk 0:02:53.8]} 7... h6 {[%clk 0:03:04.8]} 8. Bxf6 {[%clk 0:02:54.3]}
8... Qxf6 {[%clk 0:03:06.7]} 9. O-O {[%clk 0:02:55.5]} 9... Qd8 {[%clk
0:03:06.7]} 10. a3 {[%clk 0:02:53.2]} 10... O-O {[%clk 0:03:06.8]} 11. b4 {[%clk
0:02:43.5]} 11... Ba7 {[%clk 0:03:07.3]} 12. Nd5 {[%clk 0:02:40.5]} 12... Be6
{[%clk 0:03:06.7]} 13. Rc1 {[%clk 0:02:26.6]} 13... f5 {[%clk 0:03:05.5]} 14.
Qb3 {[%clk 0:02:20.4]} 14... f4 {[%clk 0:02:55.4]} 15. b5 {[%clk 0:02:06.2]}
15... Nd4 {[%clk 0:02:49.2]} 16. Nxd4 {[%clk 0:02:05.9]} 16... Bxd4 {[%clk
0:02:51.1]} 17. e3 {[%clk 0:01:54.2]} 17... fxe3 {[%clk 0:02:51.6]} 18. fxe3
{[%clk 0:01:56.1]} 18... Rxf1+ {[%clk 0:02:43.1]} 19. Rxf1 {[%clk 0:01:58]}
19... Bc5 {[%clk 0:02:43.3]} 20. bxa6 {[%clk 0:01:43.7]} 20... Rxa6 {[%clk
0:02:34.1]} 21. Qxb7 {[%clk 0:01:29.6]} 21... Rxa3 {[%clk 0:02:34.6]} 22. Nxc7
{[%clk 0:01:22.8]} 22... Bxe3+ {[%clk 0:02:34.6]} 23. Kh1 {[%clk 0:01:23]} 23...
Bc8 {[%clk 0:01:57.8]} 24. Qd5+ {[%clk 0:00:58.7]} 24... Kh8 {[%clk 0:01:52.4]}
25. Nb5 {[%clk 0:00:49.8]} 25... Ra6 {[%clk 0:01:50.1]} 26. Qf7 {[%clk
0:00:34.5]} 26... Qg8 {[%clk 0:00:46.8]} 27. Qe7 {[%clk 0:00:17.1]} 27... Bg4
{[%clk 0:00:32.5]} 28. h3 {[%clk 0:00:12.7]} 28... Be2 {[%clk 0:00:27.2]} 29.
Re1 {[%clk 0:00:08.1]} 29... Bg5 {[%clk 0:00:26.1]} 30. Qd7 {[%clk 0:00:06.3]}
30... Bxd3 {[%clk 0:00:20.4]} 31. Rd1 {[%clk 0:00:04.3]} 31... Bg6 {[%clk
0:00:17.3]} 32. Nxd6 {[%clk 0:00:04.8]} 32... Kh7 {[%clk 0:00:14.7]} 33. Bd5
{[%clk 0:00:05.1]} 33... Qf8 {[%clk 0:00:15.7]} 34. Nf7 {[%clk 0:00:05.1]} 34...
Bxf7 {[%clk 0:00:11.4]} 35. Bxf7 {[%clk 0:00:07]} 35... Ra2 {[%clk 0:00:08.7]}
36. Qf5+ {[%clk 0:00:04.3]} 36... Kh8 {[%clk 0:00:09.9]} 37. c5 {[%clk
0:00:04.5]} 37... Ra7 {[%clk 0:00:09.1]} 38. Bd5 {[%clk 0:00:04.8]} 38... Qxf5
{[%clk 0:00:09.6]} 0-1

[Event "*** Titled Tuesday Blitz"]
[Site "Chess.com"]
[Date "2019.08.06"]
[Round "9"]
[White "Jahonas"]
[Black "slowdgehammer"]
[Result "1/2-1/2"]
[WhiteElo "2406"]
[BlackElo "2457"]
[TimeControl "180+2"]
[EndTime "15:09:14 PDT"]
[Termination "Game drawn by repetition"]

1. d4 {[%clk 0:03:01.9]} 1... Nf6 {[%clk 0:03:00.5]} 2. Nf3 {[%clk 0:03:01.7]}
2... e6 {[%clk 0:03:01]} 3. c4 {[%clk 0:03:02.9]} 3... d5 {[%clk 0:03:01.2]} 4.
g3 {[%clk 0:03:04]} 4... Bb4+ {[%clk 0:03:01.3]} 5. Bd2 {[%clk 0:03:04.8]} 5...
Be7 {[%clk 0:03:02.1]} 6. Bg2 {[%clk 0:03:05.5]} 6... O-O {[%clk 0:03:02.9]} 7.
Qc2 {[%clk 0:03:05.7]} 7... b6 {[%clk 0:03:04.2]} 8. O-O {[%clk 0:03:05.8]} 8...
Bb7 {[%clk 0:03:05.2]} 9. Bf4 {[%clk 0:03:01.2]} 9... c6 {[%clk 0:02:50]} 10.
Ne5 {[%clk 0:02:56.1]} 10... Nbd7 {[%clk 0:02:50.2]} 11. Nc3 {[%clk 0:02:54.5]}
11... a6 {[%clk 0:02:45.3]} 12. cxd5 {[%clk 0:02:54.2]} 12... cxd5 {[%clk
0:02:45.6]} 13. Rfc1 {[%clk 0:02:48.6]} 13... Nxe5 {[%clk 0:02:40.8]} 14. Bxe5
{[%clk 0:02:48.8]} 14... b5 {[%clk 0:02:32.8]} 15. e3 {[%clk 0:02:45.7]} 15...
Nd7 {[%clk 0:02:28.7]} 16. Ne2 {[%clk 0:02:31.7]} 16... Nxe5 {[%clk 0:02:23.1]}
17. dxe5 {[%clk 0:02:32.2]} 17... Rc8 {[%clk 0:02:23.7]} 18. Qb3 {[%clk
0:02:30.2]} 18... Qb6 {[%clk 0:02:22.7]} 19. a4 {[%clk 0:02:23.6]} 19... b4
{[%clk 0:02:10.2]} 20. a5 {[%clk 0:02:16.3]} 20... Qa7 {[%clk 0:02:03]} 21. Rxc8
{[%clk 0:02:01.7]} 21... Rxc8 {[%clk 0:01:59.9]} 22. Rc1 {[%clk 0:02:02.7]}
22... Rxc1+ {[%clk 0:02:01.3]} 23. Nxc1 {[%clk 0:02:04.6]} 23... Qc5 {[%clk
0:02:01.9]} 24. Nd3 {[%clk 0:01:50.7]} 24... Qxa5 {[%clk 0:01:53.5]} 25. h4
{[%clk 0:01:44.3]} 25... h6 {[%clk 0:01:50.4]} 26. Nf4 {[%clk 0:01:41.3]} 26...
Qb6 {[%clk 0:01:33.9]} 27. Qd1 {[%clk 0:01:35.8]} 27... Qc7 {[%clk 0:01:13.8]}
28. Nd3 {[%clk 0:01:15.4]} 28... a5 {[%clk 0:01:14.4]} 29. Qh5 {[%clk
0:00:27.2]} 29... a4 {[%clk 0:01:00.5]} 30. Nf4 {[%clk 0:00:25.8]} 30... Qc1+
{[%clk 0:00:37.8]} 31. Kh2 {[%clk 0:00:26.2]} 31... Qxb2 {[%clk 0:00:39]} 32.
Nxe6 {[%clk 0:00:18.8]} 32... Qxf2 {[%clk 0:00:39.7]} 33. Nf4 {[%clk 0:00:17.2]}
33... Qxe3 {[%clk 0:00:31.1]} 34. e6 {[%clk 0:00:17.1]} 34... fxe6 {[%clk
0:00:22.1]} 35. Qe8+ {[%clk 0:00:18]} 35... Bf8 {[%clk 0:00:21.5]} 36. Nxe6
{[%clk 0:00:18.2]} 36... Qf2 {[%clk 0:00:19.1]} 37. Qd7 {[%clk 0:00:16.5]} 37...
Ba6 {[%clk 0:00:15.9]} 38. Qxd5 {[%clk 0:00:15.9]} 38... Kh8 {[%clk 0:00:13.6]}
39. Nf4 {[%clk 0:00:12.9]} 39... Bf1 {[%clk 0:00:13.1]} 40. Qf7 {[%clk
0:00:13.9]} 40... Bc5 {[%clk 0:00:09.5]} 41. Ng6+ {[%clk 0:00:14.4]} 41... Kh7
{[%clk 0:00:11.1]} 42. Nf8+ {[%clk 0:00:10]} 42... Kh8 {[%clk 0:00:09.3]} 43.
Ng6+ {[%clk 0:00:11.1]} 43... Kh7 {[%clk 0:00:10.5]} 44. Nf8+ {[%clk 0:00:12]}
44... Kh8 {[%clk 0:00:11.5]} 45. Ng6+ {[%clk 0:00:12.6]} 1/2-1/2

[Event "*** Titled Tuesday Blitz"]
[Site "Chess.com"]
[Date "2019.08.06"]
[Round "9"]
[White "chessdjw"]
[Black "ArnaudovP"]
[Result "1-0"]
[WhiteElo "2684"]
[BlackElo "2665"]
[TimeControl "180+2"]
[EndTime "15:09:19 PDT"]
[Termination "chessdjw won by checkmate"]

1. d4 {[%clk 0:03:01.9]} 1... Nf6 {[%clk 0:03:00.3]} 2. c4 {[%clk 0:03:03.5]}
2... e6 {[%clk 0:02:56.3]} 3. g3 {[%clk 0:03:03.4]} 3... d5 {[%clk 0:02:54.9]}
4. Bg2 {[%clk 0:03:04]} 4... dxc4 {[%clk 0:02:55.6]} 5. Qa4+ {[%clk 0:03:03.7]}
5... Nbd7 {[%clk 0:02:54.9]} 6. Qxc4 {[%clk 0:02:58.4]} 6... a6 {[%clk
0:02:54.4]} 7. Nh3 {[%clk 0:02:51.3]} 7... b5 {[%clk 0:02:52.6]} 8. Qc2 {[%clk
0:02:51.8]} 8... Rb8 {[%clk 0:02:52.9]} 9. O-O {[%clk 0:02:47.3]} 9... Bb7
{[%clk 0:02:50.9]} 10. e4 {[%clk 0:02:36.7]} 10... c5 {[%clk 0:02:51.1]} 11. Bf4
{[%clk 0:02:29.4]} 11... Rc8 {[%clk 0:02:50.9]} 12. d5 {[%clk 0:02:30.4]} 12...
e5 {[%clk 0:02:49.6]} 13. Be3 {[%clk 0:02:25.7]} 13... Bd6 {[%clk 0:02:50.1]}
14. f3 {[%clk 0:02:25]} 14... O-O {[%clk 0:02:49.9]} 15. Nf2 {[%clk 0:02:25.8]}
15... c4 {[%clk 0:02:51.1]} 16. Nd2 {[%clk 0:02:19.1]} 16... Bc5 {[%clk
0:02:51.8]} 17. Rfe1 {[%clk 0:02:15.9]} 17... Qb6 {[%clk 0:02:52.2]} 18. Nf1
{[%clk 0:02:16.5]} 18... Bxe3 {[%clk 0:02:50.5]} 19. Nxe3 {[%clk 0:02:18]} 19...
Nc5 {[%clk 0:02:52.1]} 20. Kh1 {[%clk 0:02:10.3]} 20... g6 {[%clk 0:02:52.5]}
21. Qc3 {[%clk 0:02:04.2]} 21... Rfe8 {[%clk 0:02:52.9]} 22. Rad1 {[%clk
0:02:01.5]} 22... Nh5 {[%clk 0:02:46.6]} 23. Neg4 {[%clk 0:01:53.2]} 23... f6
{[%clk 0:02:44.5]} 24. Bh3 {[%clk 0:01:49.5]} 24... Rcd8 {[%clk 0:02:42.6]} 25.
b4 {[%clk 0:01:48.3]} 25... Na4 {[%clk 0:02:35.8]} 26. Qd2 {[%clk 0:01:43.4]}
26... Rd6 {[%clk 0:02:34.6]} 27. Re2 {[%clk 0:01:22.4]} 27... Qd8 {[%clk
0:02:32.2]} 28. Qc1 {[%clk 0:01:17.9]} 28... Nb6 {[%clk 0:02:31.7]} 29. Nh6+
{[%clk 0:01:17.9]} 29... Kg7 {[%clk 0:02:31.5]} 30. Bg4 {[%clk 0:01:18.8]} 30...
Bc8 {[%clk 0:02:21.4]} 31. Bxh5 {[%clk 0:01:19]} 31... gxh5 {[%clk 0:02:22.3]}
32. g4 {[%clk 0:01:16.2]} 32... hxg4 {[%clk 0:02:17.8]} 33. Rg1 {[%clk
0:01:11.4]} 33... f5 {[%clk 0:02:09.2]} 34. Nxf5+ {[%clk 0:01:10.1]} 34... Bxf5
{[%clk 0:02:10]} 35. exf5 {[%clk 0:01:12]} 35... Nxd5 {[%clk 0:02:07.1]} 36.
Nxg4 {[%clk 0:01:12.3]} 36... Kh8 {[%clk 0:02:04.3]} 37. Nxe5 {[%clk 0:01:11.3]}
37... Rf6 {[%clk 0:01:59.5]} 38. Qh6 {[%clk 0:00:18.3]} 38... Re7 {[%clk
0:01:03.5]} 39. Ng6+ {[%clk 0:00:10.9]} 39... Rxg6 {[%clk 0:01:03.8]} 40. fxg6
{[%clk 0:00:11.9]} 40... Rg7 {[%clk 0:00:53.6]} 41. gxh7 {[%clk 0:00:04.8]}
41... Rxg1+ {[%clk 0:00:54.3]} 42. Kxg1 {[%clk 0:00:06.7]} 42... Nf6 {[%clk
0:00:55.3]} 43. Rd2 {[%clk 0:00:04.7]} 43... Qe7 {[%clk 0:00:53.7]} 44. Kf1
{[%clk 0:00:05.8]} 44... c3 {[%clk 0:00:51.6]} 45. Rg2 {[%clk 0:00:06.5]} 45...
Nd5 {[%clk 0:00:42]} 46. Rg8# {[%clk 0:00:06.5]} 1-0